Cogmind - Beta 10.1 @@@ ROGUE MODE // 2020.10.23 @ 22:54:51 Player: W_W Result: Destroyed self with Grenade Launcher Performance ------------- Evolutions (0) 0 Regions Visited (2) 400 Robots Destroyed (46) 230 Value Destroyed (885) 885 Prototype IDs (2) 40 Alien Tech Used (0) 0 Bonus (0) 0 TOTAL SCORE: 1555 Bonus ------- None Cogmind --------- Core Integrity 0/250 Matter 254/300 Energy 250/250 System Corruption 0% Temperature Cool (12) Movement Walking (180) Ox2 Location -10/Mines Parts ------- > --- POWER (1) -------- Ion Engine > --- PROPULSION (2) --- Aluminum Leg Aluminum Leg > --- UTILITY (2) ------ Large Storage Unit Large Storage Unit > --- WEAPON (2) ------- Assault Rifle Grenade Launcher > --- INVENTORY (16) --- Improved Ion Engine Improved Ion Engine Improved Ion Engine High-capacity Matter Pod (200) Sensor Array Signal Interpreter Targeting Computer ECM Suite Weapon Shielding Light Armor Plating Hacking Suite Medium Laser Particle Gun Particle Gun Assault Rifle Light Cannon Peak State ------------ > --- POWER ------------ Ion Engine > --- PROPULSION ------- Aluminum Leg Aluminum Leg > --- UTILITY ---------- Large Storage Unit Large Storage Unit > --- WEAPON ----------- Particle Gun Particle Gun > --- INVENTORY -------- Ion Engine Improved Ion Engine Improved Ion Engine Improved Ion Engine Medium Matter Pod Sensor Array Signal Interpreter Targeting Computer Light Armor Plating Hacking Suite EM Pulse Gun Small Laser Particle Gun Light Assault Rifle [Rating: 11] Favorites ----------- Power Ion Engine Engine Ion Engine Propulsion Light Treads Treads Light Treads Leg Aluminum Leg Utility Large Storage Unit Storage Large Storage Unit Weapon Particle Gun Energy Gun Particle Gun Ballistic Gun Assault Rifle Launcher Grenade Launcher Special Weapon Mining Laser Build | -11 -10 -10 ------- Run | Scr Mat Min Slots Evolved . | . . . Power . | . . . Propulsion . | . . . Utility . | . . . Weapon . | . . . Parts Attached 25 | 7 15 3 Power 4 | 2 2 . Engine 4 | 2 2 . Core . | . . . Reactor . | . . . Propulsion 6 | 2 2 2 Treads 2 | 2 . . Leg 4 | . 2 2 Wheel . | . . . Hover . | . . . Flight . | . . . Utility 3 | 1 2 . Device . | . . . Storage 3 | 1 2 . Processor . | . . . Hackware . | . . . Protection . | . . . Artifact . | . . . Weapon 12 | 2 9 1 Energy Gun 7 | 2 5 . Energy Cannon . | . . . Ballistic Gun 3 | . 3 . Ballistic Cannon . | . . . Launcher 1 | . . 1 Special Weapon 1 | . 1 . Impact Weapon . | . . . Slashing Weapon . | . . . Piercing Weapon . | . . . Special Melee Weapon . | . . . Unidentified Prototypes . | . . . Parts Lost 9 | . 9 . Power 1 | . 1 . Propulsion 2 | . 2 . Utility . | . . . Weapon 6 | . 6 . Highest Loss Streak 6 | . 6 . Average Slot Usage (%) 96 | . 96 100 Engine 12 | . 12 14 Treads 13 | . 15 . Leg 14 | . 10 28 Storage 27 | . 27 28 Energy Gun 18 | . 19 13 Ballistic Gun 8 | . 6 14 Naked Turns . | . . . Heaviest Build 43 | 12 43 42 Greatest Support 40 | 40 40 20 Greatest Overweight (x) 11 | 1 11 2 Average Overweight (x) 1 | . 1 2 Largest Inventory Capacity 16 | 6 16 16 Average Capacity 14 | 5 15 16 Most Carried 16 | 6 16 16 Average Carried 11 | 5 11 16 Final Capacity 16 | 6 16 16 Final Carried 16 | 6 16 16 Class Distribution -------------------- 100% | Mutant Dominant Class ---------------- Mutant | -10/Materials Mutant | -10/Mines Resources | -11 -10 -10 ----------- Run | Scr Mat Min Matter Collected 797 | 357 384 56 Remotely . | . . . Salvage Created 1560 | 318 977 265 Parts 96 | 36 53 7 Haulers Intercepted . | . . . Recyclers Shooed 3 | 1 1 1 Parts Field Recycled . | . . . Retrieved Matter . | . . . Parts Self-Destructed . | . . . Prevented . | . . . Kills | -11 -10 -10 ------- Run | Scr Mat Min Combat Hostiles Destroyed 22 | . 17 5 Guns 19 | . 17 2 AOE 3 | . . 3 Classes Destroyed 8 | 3 4 1 Worker 5 | 4 1 . Builder 1 | . 1 . Tunneler 9 | 9 . . Recycler 4 | 1 1 2 Operator 2 | . 2 . Watcher 3 | . 3 . Grunt 19 | . 17 2 Assembled 3 | . . 3 Best Kill Streak 4 | 4 4 3 Combat Bots Only 3 | . 3 3 Max Kills in Single Turn 1 | 1 1 1 Gunslinging . | . . . Exploded 1 | . . 1 Melee . | . . . Uniques/NPCs Destroyed . | . . . Combat | -11 -10 -10 -------- Run | Scr Mat Min Damage Taken 1305 | . 1124 181 Core 251 | . 232 19 Absorbed by Shields . | . . . Core Remaining (%) 100 | 100 . . Volleys Fired 151 | 36 100 15 Largest 2 | 2 2 2 Hottest 130 | 80 130 85 Shots Fired 275 | 72 174 29 Gun 265 | 72 167 26 Cannon . | . . . Launcher 3 | . . 3 Special 7 | . 7 . Kinetic 41 | . 27 14 Thermal 149 | 36 101 12 Explosive 3 | . . 3 Electromagnetic 82 | 36 46 . Robot Hit Streak 16 | 14 16 10 Robot Miss Streak 6 | 6 4 3 Penetration Max . | . . . Secondary Targets 4 | . 3 1 Max Gunslinging Chain 1 | . 1 1 Shots Hit Robots 173 | 34 119 20 Core Hits 72 | 14 46 12 Critical Hits . | . . . Critical Kills . | . . . Critical Parts Destroyed . | . . . Melee Attacks . | . . . Impact . | . . . Slashing . | . . . Piercing . | . . . Sneak Attacks . | . . . Combat Hostiles . | . . . Follow-up Attacks . | . . . Damage Inflicted 2519 | 480 1581 458 Guns 2179 | 442 1511 226 Cannons . | . . . Explosions 314 | 38 44 232 Melee . | . . . Ramming 2 | . 2 . Kinetic 274 | . 190 84 Thermal 1217 | 164 911 142 Explosive 232 | . . 232 Electromagnetic 794 | 316 478 . Impact . | . . . Slashing . | . . . Piercing . | . . . Highest Corruption . | . . . Average Corruption . | . . . Corruption Purged . | . . . Overload Shots . | . . . Overflow Damage 4 | . 4 . Projectiles . | . . . Explosions 4 | . 4 . Melee . | . . . Knockbacks . | . . . Impact . | . . . Kinetic . | . . . Secondary . | . . . Self-Inflicted Damage 8 | . 1 7 Shots 1 | . . 1 Rammed 1 | . 1 . Targets Rammed 1 | . 1 . Kicked . | . . . Crushed . | . . . Highest Temperature 400 | 198 400 213 Average Temperature 110 | 71 131 71 Received Heat Transfer 716 | . 627 89 Effects 4 | . 4 . Energy Bleed 2 | . 2 . Interference 2 | . 2 . Siege Activations . | . . . Robots Corrupted . | . . . Combat Hostiles . | . . . Parts Fried 3 | 1 2 . Impact Corruptions . | . . . Robots Melted . | . . . Combat Hostiles . | . . . Parts Melted 5 | . 4 1 Heat Transferred 2722 | 350 2039 333 Parts Sabotaged . | . . . Parts Stolen . | . . . Parts Stripped . | . . . Power Chain Reactions 2 | 1 1 . Missiles Intercepted . | . . . Alert | -11 -10 -10 ------- Run | Scr Mat Min Peak Influence 242 | 70 242 77 Initial 45 | . 45 2 Average 74 | 34 82 70 Maximum Alert Level 1 | . 1 . Low Security (%) 93 | 100 90 100 Level 1 6 | . 9 . Level 2 . | . . . Level 3 . | . . . Level 4 . | . . . Level 5 . | . . . High Security . | . . . Max Security . | . . . Squads Dispatched 3 | . 3 . Investigation 1 | . 1 . Extermination . | . . . Reinforcement 2 | . 2 . Assault . | . . . Garrison . | . . . Intercept . | . . . Construction Impeded . | . . . Haulers Reinforced . | . . . Stealth | -11 -10 -10 --------- Run | Scr Mat Min Distress Signals 2 | . 2 . Communications Jammed . | . . . Distress Signals . | . . . Times Spotted 37 | . 30 7 Peak Tracking Total 5 | . 4 5 Tactical Retreats 3 | . 3 . Traps | -11 -10 -10 ------- Run | Scr Mat Min Traps Triggered . | . . . Indirectly . | . . . Trap Hack Attempts . | . . . Triggered . | . . . Disarmed . | . . . Reprogrammed . | . . . Reused . | . . . Traps Extracted . | . . . Installed . | . . . Triggered . | . . . Machines | -11 -10 -10 ---------- Run | Scr Mat Min Machines Disabled 1 | . 1 . Max in Single Turn 1 | . 1 . Machines Sabotaged . | . . . Garrisons Compromised . | . . . Overloaded Fab Kills . | . . . Fab Network Shutdowns . | . . . Hacking | -11 -10 -10 --------- Run | Scr Mat Min Machines Accessed 8 | . 8 . Terminals 6 | . 6 . Fabricators . | . . . Repair Stations . | . . . Recycling Units 2 | . 2 . Scanalyzers . | . . . Garrison Access . | . . . Total Hacks 26 | . 26 . Successful 15 | . 15 . Failed 11 | . 11 . Catastrophic . | . . . Database Lockouts . | . . . Manual . | . . . Terminals 23 | . 23 . Fabricators . | . . . Repair Stations . | . . . Recycling Units 3 | . 3 . Scanalyzers . | . . . Garrison Access . | . . . Terminal Hacks 12 | . 12 . Prototype ID Bank 1 | . 1 . Level Access Points 1 | . 1 . Branch Access Points 1 | . 1 . Emergency Access Points 1 | . 1 . Alert Level 1 | . 1 . Locate Traps 2 | . 2 . Dispatch Records 1 | . 1 . Security Status 1 | . 1 . Transport Status 1 | . 1 . Investigation Status 1 | . 1 . Reinforcement Status 1 | . 1 . Fabricator Hacks . | . . . Repair Station Hacks . | . . . Recycling Unit Hacks 3 | . 3 . Report Inventory 2 | . 2 . Retrieve Components 1 | . 1 . Scanalyzer . | . . . Garrison Access Hacks . | . . . Unauthorized Hacks . | . . . Terminals . | . . . Fabricators . | . . . Repair Stations . | . . . Recycling Units . | . . . Scanalyzers . | . . . Garrison Access . | . . . Data Cores Recovered . | . . . Used . | . . . Hacking Detections 6 | . 6 . Full Trace Events 1 | . 1 . Feedback Events . | . . . Feedback Blocked . | . . . Robot Schematics Acquired . | . . . Robots Built . | . . . Matter . | . . . Time . | . . . Total Robot Build Rating . | . . . Part Schematics Acquired . | . . . Parts Built . | . . . Matter . | . . . Time . | . . . Total Part Build Rating . | . . . Parts Repaired . | . . . Time . | . . . Parts Recycled . | . . . Recycled Matter . | . . . Retrieved Matter . | . . . Retrieved Components 7 | . 7 . Parts Scanalyzed . | . . . Part Schematics Acquired . | . . . Parts Damaged . | . . . Bothacking | -11 -10 -10 ------------ Run | Scr Mat Min Used RIF Installer . | . . . Robots Hacked . | . . . Non-combat . | . . . Combat . | . . . Robot Hacks Applied . | . . . Relay Couplers Released . | . . . Robots Rewired . | . . . Allies Hacked . | . . . Hacks Repelled . | . . . Allies | -11 -10 -10 -------- Run | Scr Mat Min Total Allies . | . . . Largest Group . | . . . Highest-Rated Group . | . . . Highest-Rated Ally . | . . . Total Orders . | . . . Ally Attacks . | . . . Total Damage . | . . . Kills . | . . . Allies Corrupted . | . . . Allies Melted . | . . . Intel | -11 -10 -10 ------- Run | Scr Mat Min Robot Analysis Total . | . . . Derelict Logs Recovered 1 | . . 1 Drone Launches . | . . . Drone Recoveries . | . . . Exploration | -11 -10 -10 ------------- Run | Scr Mat Min Turns Passed 2623 | 334 1869 420 Spaces Moved 1150 | 129 814 207 Core 10 | 7 3 . Treads 567 | 122 445 . Legs 573 | . 366 207 Wheels . | . . . Hover . | . . . Flight . | . . . Fastest Speed 50 | 50 150 180 Average Speed 171 | 155 171 180 Slowest Speed 600 | 160 600 180 Overloaded Moves . | . . . Propulsion Burnouts . | . . . Robots Hopped . | . . . Cave-ins Triggered . | . . . Exploration Rate (%) 49 | 6 99 43 Regions Visited 2 Branch Regions 1 Pre-discovered Areas 1 | . . 1 Known Exits Taken 1 | . 1 . Unknown Exits Taken 1 | 1 . . Scrap Searched . | . . . Spaces Dug 2 | . 2 . Terrain Destroyed 17 | 8 4 5 Melee . | . . . Projectile 2 | . 2 . AOE 15 | 8 2 5 Terrain Rammed . | . . . Walls Destroyed . | . . . Machines Disabled . | . . . Actions | -11 -10 -10 --------- Run | Scr Mat Min Total 1513 | 188 1098 227 Wait 138 | 7 131 . Move 1148 | 128 813 207 Hop . | . . . Pick Up 34 | 8 26 . Fast Attach 8 | 5 3 . Attach 8 | 1 7 . Detach . | . . . Swap 9 | 1 5 3 Drop 16 | 2 12 2 Fire 151 | 36 100 15 Melee . | . . . Ram . | . . . Kick 1 | . 1 . Crush . | . . . Escape Stasis . | . . . Rewire . | . . . Trap . | . . . Miscellaneous . | . . . Route ------- -11/Scrapyard -10/Materials (discovered 4 exits: *Mat x3 / *Min) -10/Mines (discovered 1 exit: *Mat) History --------- Turn | Location | Event 7 | -11/Scrapyard | Discovered new exit (range 15) 335 | -11/Scrapyard | Entered Materials 336 | -10/Materials | Build established: Mutant 364 | -10/Materials | Discovered new exit (range 15) 832 | -10/Materials | Discovered new exit (range 11) 903 | -10/Materials | Identified exit to Materials 903 | -10/Materials | Identified exit to Mines 1414 | -10/Materials | Core integrity fell below 50% 1433 | -10/Materials | Core integrity fell below 20% 1470 | -10/Materials | Lost 6 parts (1p1n4w) 2204 | -10/Materials | Entered Mines 2328 | -10/Mines | Discovered exit to Materials (range 11) 2503 | -10/Mines | Learned location of Zion (-6) 2601 | -10/Mines | Assembled infested the area 2624 | -10/Mines | Destroyed self with Grenade Launcher Last Messages --------------- 02252_ R-06 Scavenger collects Imp. Heat Sink. 02270_ R-06 Scavenger destroyed. 02273_ Acquired 15 matter. 02300_ R-06 Scavenger destroyed. 02305_ Acquired 3 matter. 02321_ R-06 Scavenger collects Tractor Beam. 02328_ EXIT=FOUND: MATERIALS 02490_ K-01 Serf cleans the Pressure Siphon. 02503_ Acquired derelict log, extracted data. World map updated: -6/Zion. 02503_ K-01 Serf cleans the Pressure Siphon. 02601_ ALERT: Infestation in the mines, dispatching Demolisher response squad. 02614_ K-01 Serf destroyed. 02618_ as-30249 destroyed. 02621_ as-14860 destroyed. 02622_ HV Slug penetrates as-57225. 02622_ as-57225 suffers critical hit. 02623_ as-98877 powers down. 02624_ as-57225 destroyed. Map ----- +----------------------------------------------------+ | ??????????????????????????????????#### """ # | | ?????????????????????????????????????## | | ??????????????????????????????????????##### < | | ??????????????????????????????????????????## # | | ???????????????????????????????????????????# ## | | ???????????????????????????????????????????## ## | | ????????????????????????????????????????????## # | | ?????????????????????????????????????????????## | | ??????????????????????????????????????????????# # | | ??????????????????????????????????????????????## # | | ???????????????????????????????????????????????# # | | ???????????????????????????????????????????????# # | | ???????????????????????????????????????????????# # | | ???????????????????????????????????????????????# # | | ???????????????????????????????????????????????# # | | ???????????????????????????????????????????????# # | | ??????????????????????????????####?????????????# | | ?????????????????????????????## ##????????????### | | ????????????????????????????## #??????????????? | | ????????????????????????????# ##?????????????? | | ????????????????????????????# #?????????????? | | ????????? ???????????????# #?????????????? | | ????????# ############ #?????????????? | | ?????????# ## #??????????????? | | ?????????# a # ####++######???? | | ?????????# #### ####@ # # ##??? | | ?????????# ??????# ??# #??? | | ???????????????????# ??# ### #??? | | ?????????????????### ## % *% ## #???? | | ???????????????### #????? | | ???????? r ##???## | | ????????? #### a #???# | | ????????????????# ## ##?# | | ????????????????# ####### ## | | ????????????????## ## ##?????## | | ?????????????????###?## ## ##???????## | | ??????????????????????##### #?????????## # | | ??????????????????????????# #??????????### ## ## | | ??????????????????????????# #????????????# #?###? | | ??????????????????????????# #???????????## ##???? | | ??????????????????????????? #??????????## ##??? | | ??????????????????????????? #??????????# #### | | ??????????????????????????? ???????????# | | ???????????????????????????????????????# " | | ???????????????????????????????????????## #### " | | ????????????????????????????????????????####??## " | | ???????????????????????????????????????????????# " | | ???????????????????????????????????????????????# | | ???????????????????????????????????????????????# | | ??????????????????????????????????????????????# | +----------------------------------------------------+ Best States ------------- Heat Dissipation 25 Energy Generation 12 Energy Capacity 265 Matter Stores 300 Matter Capacity 300 Sight Range 16 Terrain Scan Density 10 Evasion (%) 40 Recoil Reduction 2 Item Schematics ----------------- None Robot Schematics ------------------ None Fabricated ------------ Nothing Alien Tech Used ----------------- None Achievements -------------- None Challenges ------------ None Game ------ Seed MomentumHeartLaser Manual? 0 Play Time 00:20:42 Cumulative 41.0 hours Start 2020.10.23 @ 22:34:25 End 2020.10.23 @ 22:54:51 Sessions 1 Manual Loads 0 Difficulty Rogue Special Mode None Game No. 42 Rogue 42 Adventurer 0 Explorer 0 Win Type - Total 0 Types 0/0/0/0/0/0/0/0/0 Lore% 26 Gallery% 26 Achievement% 23 Wizard Run 0 Options --------- ASCII 0 Keyboard 0 Movement Mouse Keybinds 0 Fullscreen 1 Font 18/SmallcapsGlow Map View 76x50 Tactical HUD 1 Map Filters NONE Filters NONE Steam 1 RUN: 84c660a8-2802-4ad6-8c8f-1ee563736d80